bitfinex/quotes_ETHUSD_20220103
["timestamp","ask_amount","ask_price","bid_price","bid_amount"]
[1641188501760,5.17963139,3820.5,3820.4,1.01306427]
[1641188502694,5.17963139,3820.5,3820.4,0.01306427]
[1641188503091,5.17963139,3820.5,3820.4,0.0181503]
[1641188519898,7.63029456,3820.5,3820.4,0.0181503]
[1641188520102,8.01129456,3820.5,3820.4,0.0181503]
[1641188520496,5.56063139,3820.5,3820.4,0.0181503]
[1641188520755,5.56063139,3820.5,3820.1,0.02219412]
[1641188520954,1.963915,3820.3,3820.1,0.02219412]
[1641188521160,0.381,3820.2,3820.1,0.02219412]
[1641188521366,0.681,3820.2,3820.1,0.02219412]
[1641188522259,2.96317335,3820.2,3820.1,0.02219412]
[1641188522460,2.94784296,3820.2,3820.1,0.02219412]
[1641188523364,0.65463,3820.0,3819.8,0.42441826]
[1641188523576,1.28594223,3819.9,3819.8,0.42441826]
[1641188523765,1.28594223,3819.9,3819.8,0.47870983]
[1641188524797,3.52023312,3819.9,3819.8,0.47870983]
[1641188525196,3.52023312,3819.9,3819.8,0.42441826]
[1641188525597,3.82023312,3819.9,3819.8,0.42441826]
[1641188525802,5.60279315,3819.9,3819.8,0.42441826]
[1641188526000,10.66079315,3819.9,3819.8,0.42441826]
[1641188526201,16.84042454,3819.9,3819.8,0.42441826]
[1641188526401,16.84042454,3819.9,3819.2,1.24231878]
[1641188526606,1.30966,3819.6,3819.2,1.24231878]
[1641188526801,5.56063139,3819.5,3819.3,0.00511581]
[1641188527200,1.1085206,3819.0,3818.8,0.00795793]
[1641188527401,1.4895206,3819.0,3818.8,0.00795793]
[1641188527600,1.7895206,3819.0,3818.8,0.00795793]
[1641188528000,4.02860283,3819.0,3818.8,0.00795793]
[1641188528245,2.4443606,3819.0,3818.8,0.00795793]
[1641188528450,0.65484,3818.9,3818.8,0.00795793]
[1641188528651,0.65484,3818.9,3818.8,0.0115147]
[1641188531052,0.65484,3818.9,3818.7,0.35478474]
[1641188531550,0.65484,3818.9,3818.5,1.29661275]
[1641188531755,1.30964,3818.9,3818.5,1.29661275]
[1641188531994,1.30964,3818.9,3818.6,0.00113685]
[1641188532799,1.30967,3819.1,3818.6,0.00113685]
[1641188532800,0.65476,3819.1,3818.6,0.00113685]
[1641188533000,0.381,3819.4,3818.6,0.00113685]
[1641188533200,0.00113685,3819.0,3818.6,1.31424571]
[1641188533403,0.00284212,3819.3,3818.6,1.31424571]
[1641188533802,0.0022737,3819.2,3818.7,1.24231878]
[1641188534202,0.00170527,3819.1,3818.7,1.24231878]
[1641188534601,0.00113685,3819.0,3818.6,2.55656449]
[1641188535002,0.65475,3819.2,3818.6,2.55656449]
[1641188535202,0.68370749,3818.9,3818.6,2.55656449]
[1641188536047,0.68370749,3818.9,3818.7,0.01181232]
[1641188538052,0.98370749,3818.9,3818.7,0.01181232]
[1641188538252,0.68370749,3818.9,3818.7,0.01181232]
[1641188539604,0.00170527,3819.1,3818.7,0.01181232]
[1641188539797,0.00170527,3819.1,3818.7,1.01181232]
[1641188539996,0.00113685,3819.0,3818.7,1.01181232]
[1641188540198,0.00113685,3819.0,3818.7,0.01181232]
[1641188540396,3.90017346,3820.4,3818.7,0.01181232]
[1641188540397,0.00341054,3819.4,3818.8,0.381]
[1641188540597,0.00341054,3819.4,3819.0,1.39263685]
[1641188540802,0.00284212,3819.3,3819.1,2.454801]
[1641188540998,0.00284212,3819.3,3819.0,4.38250685]
[1641188541198,0.0022737,3819.2,3819.1,0.36591743]
[1641188541401,0.0022737,3819.2,3819.1,8.21591743]
[1641188541604,0.0022737,3819.2,3819.1,9.21591743]
[1641188542002,0.0022737,3819.2,3819.1,10.52478833]
[1641188542403,0.05429332,3820.4,3819.2,0.6544]
[1641188542602,0.05429332,3820.4,3819.3,0.381]
[1641188542801,0.05429332,3820.4,3819.4,5.68507581]
[1641188543003,0.05429332,3820.4,3820.1,0.65431]
[1641188543247,0.65429,3821.8,3820.6,3.22856635]
[1641188543453,11.25327346,3821.9,3820.7,0.65421]
[1641188543454,3.51917346,3821.9,3820.7,0.65421]
[1641188543650,3.51917346,3821.9,3820.7,1.65421]
[1641188543852,3.51917346,3821.9,3820.7,1.3]
[1641188544051,3.51917346,3821.9,3821.2,1.3083909]
[1641188544250,3.51917346,3821.9,3820.7,1.3]
[1641188544251,0.65431,3821.8,3820.7,1.3]
[1641188544452,0.65431,3821.8,3821.2,1.30011243]
[1641188544649,0.00795793,3821.7,3821.2,1.30011243]
[1641188545050,0.65431,3821.8,3821.2,1.30011243]
[1641188545051,0.00738951,3821.6,3821.2,1.30011243]
[1641188545253,0.00738951,3821.6,3820.6,3.22856635]
[1641188545553,0.65439,3821.4,3820.7,1.55148654]
[1641188545752,2.48060032,3821.3,3820.7,1.25148654]
[1641188545951,0.00568424,3821.3,3820.7,1.25148654]
[1641188546153,0.00511581,3821.2,3820.7,1.25148654]
[1641188546353,0.65960581,3821.2,3820.7,1.2759971]
[1641188546554,0.65446,3821.0,3820.7,1.2759971]
[1641188546851,0.00341054,3820.9,3820.7,1.2759971]
[1641188547291,0.00284212,3820.8,3820.7,1.2759971]
[1641188547691,0.00397897,3820.8,3820.7,1.2759971]
[1641188551843,0.00397897,3820.8,3820.7,2.2759971]
[1641188552045,0.00397897,3820.8,3820.7,1.2759971]
[1641188552247,0.00397897,3820.8,3820.7,1.5759971]
[1641188552850,0.00397897,3820.8,3820.7,1.58765285]
[1641188553854,0.00397897,3820.8,3820.7,4.97948168]
[1641188554250,0.00397897,3820.8,3820.7,4.9608984]
[1641188554701,0.00397897,3820.8,3820.7,2.58765285]
[1641188555100,0.00397897,3820.8,3820.7,4.92014428]
[1641188556101,0.00397897,3820.8,3820.7,2.58765285]
[1641188556505,0.00397897,3820.8,3820.7,3.83913939]
[1641188557105,5.45184642,3823.2,3822.7,2.92504023]
[1641188557308,5.45184642,3823.2,3822.7,2.46521887]
[1641188557309,5.2316,3823.1,3822.7,2.46521887]
[1641188557503,5.2316,3823.1,3823.0,0.01268666]
[1641188557704,4.43207234,3823.2,3823.0,0.01268666]
[1641188557908,0.01193689,3823.1,3823.0,0.01268666]
[1641188558352,0.01193689,3823.1,3823.0,1.2131082]
[1641188558550,0.01193689,3823.1,3822.8,1.0]
[1641188558749,0.01193689,3823.1,3822.8,1.3]
[1641188558949,0.01136847,3823.0,3822.8,0.3]
[1641188559148,0.01136847,3823.0,3822.8,1.0]
[1641188559447,0.01080004,3822.9,3822.8,1.0]
[1641188559849,0.01080004,3822.9,3822.8,1.3]
[1641188561050,0.01080004,3822.9,3822.7,2.46521887]
[1641188561451,0.01023162,3822.8,3822.7,2.46521887]
[1641188563901,0.01023162,3822.8,3822.7,2.47671828]
[1641188565303,0.01121316,3822.8,3822.7,2.47671828]
[1641188566147,0.01121316,3822.8,3822.7,2.77671828]
[1641188566549,0.01121316,3822.8,3822.7,2.47671828]
[1641188566746,0.01121316,3822.8,3822.7,3.77671828]
[1641188568452,0.01121316,3822.8,3822.7,2.47671828]
[1641188571697,1.30880421,3823.2,3822.7,2.47671828]
[1641188572098,0.00170527,3823.1,3822.7,2.47671828]
[1641188572499,0.00113685,3823.0,3822.7,2.47671828]
[1641188574660,0.00113685,3823.0,3822.7,2.77671828]
[1641188574860,0.00113685,3823.0,3822.8,2.83967232]
[1641188575058,0.00113685,3823.0,3822.7,3.78458998]
[1641188575258,0.00113685,3823.0,3822.7,2.47671828]
[1641188576158,0.0020264,3823.0,3822.7,2.47671828]
[1641188581252,0.65418,3822.9,3822.7,2.47671828]
[1641188581447,0.65418,3822.9,3822.5,0.05439696]
[1641188581448,2.46521887,3822.7,3822.5,0.05439696]
[1641188581653,3.2,3822.6,3822.1,0.32146148]
[1641188581848,0.6541,3822.0,3821.6,1.66864872]
[1641188582051,0.6541,3822.0,3821.6,0.02530528]
[1641188582052,1.57686282,3821.9,3821.6,0.02530528]
[1641188582348,0.6544,3821.6,3821.1,7.74743064]
[1641188582546,0.381,3821.5,3821.1,7.74743064]
[1641188582746,0.381,3821.5,3821.2,0.00284212]
[1641188583046,0.681,3821.5,3821.2,0.00284212]
[1641188583457,1.33545,3821.5,3821.2,0.00284212]
[1641188583651,7.14128672,3821.4,3821.2,0.00284212]
[1641188583857,7.14128672,3821.4,3819.9,5.89769331]
[1641188583858,2.19675519,3821.1,3819.9,3.32517483]
[1641188584055,5.41249,3820.8,3819.9,3.32517483]
[1641188584252,0.381,3820.7,3820.0,0.00682108]
[1641188584507,1.03559,3820.7,3820.6,0.05406084]
[1641188584803,1.69017,3820.7,3820.6,0.05406084]
[1641188585001,2.78563307,3820.7,3820.6,0.05747138]
[1641188585199,8.01873307,3820.7,3820.6,0.00341054]
[1641188585601,0.6546,3820.2,3819.4,0.01023162]
[1641188585804,0.381,3820.1,3819.4,0.01023162]
[1641188586202,0.381,3820.1,3819.3,0.01080004]
[1641188586803,0.381,3820.1,3819.0,0.01250531]
[1641188587005,6.70956307,3820.7,3819.0,0.01250531]
[1641188587205,6.70956307,3820.7,3819.0,1.07842274]
[1641188587603,6.70956307,3820.7,3819.1,0.01193689]
[1641188587806,6.70956307,3820.7,3819.1,0.51193689]
[1641188588012,6.70956307,3820.7,3819.1,4.13711172]
[1641188588259,1.10285108,3820.1,3819.7,0.6544646]
[1641188588663,1.10285108,3820.1,3819.8,0.00795792]
[1641188588863,5.6141,3820.7,3819.8,0.00795792]
[1641188590266,1.04219971,3820.4,3819.8,0.00795792]
[1641188590465,1.02189965,3820.4,3819.8,0.00795792]
[1641188590967,1.02189965,3820.4,3819.7,0.00852635]
[1641188591364,0.99741842,3820.4,3819.7,0.00852635]
[1641188591769,0.99741842,3820.4,3819.6,0.3]
[1641188592003,0.99741842,3820.4,3819.7,0.00852635]
[1641188592403,0.99741842,3820.4,3819.7,1.25907944]
[1641188592806,0.99741842,3820.4,3819.8,0.00795792]
[1641188593003,1.29741842,3820.4,3819.8,0.00795792]
[1641188593209,2.30279395,3820.3,3819.8,0.00795792]
[1641188593808,1.95197842,3820.4,3819.7,0.00852635]
[1641188594011,4.25032854,3820.4,3819.7,0.00852635]
[1641188594210,1.95197842,3820.4,3819.7,0.00852635]
[1641188595212,4.91673717,3820.4,3819.7,0.00852635]
[1641188595412,2.60651842,3820.4,3819.8,0.01110859]
[1641188595614,0.65458,3820.2,3819.8,0.01110859]
[1641188595843,0.65458,3820.2,3819.9,0.0073895]
[1641188597245,1.30916,3820.2,3819.9,0.0073895]
[1641188597446,1.60916,3820.2,3819.9,0.0073895]
[1641188597844,1.30916,3820.2,3819.9,0.0073895]
[1641188598753,1.60916,3820.2,3819.9,0.0073895]
[1641188598947,1.28467582,3820.2,3819.9,0.0073895]
[1641188600809,4.07043261,3820.1,3819.9,0.0073895]
[1641188601007,2.32466389,3820.1,3820.0,0.01110851]
[1641188601206,4.66736803,3820.1,3820.0,0.01110851]
[1641188601405,2.32466389,3820.1,3820.0,0.01110851]
[1641188601606,4.60124023,3820.1,3820.0,0.01110851]
[1641188602210,2.32466389,3820.1,3820.0,0.01110851]
[1641188602610,4.61029024,3820.1,3820.0,0.01110851]
[1641188602810,4.60683604,3820.1,3820.0,0.01110851]
[1641188603013,4.61770114,3820.1,3820.0,0.01110851]
[1641188603241,4.58535816,3820.1,3820.0,0.01110851]
[1641188603451,2.32466389,3820.1,3820.0,0.01110851]
[1641188603746,4.5971236,3820.1,3820.0,0.01110851]
[1641188603944,4.67073356,3820.1,3820.0,0.01110851]
[1641188604146,4.69275846,3820.1,3820.0,0.01110851]
[1641188604347,2.32466389,3820.1,3820.0,0.01110851]
[1641188604647,4.59856843,3820.1,3820.0,0.01110851]
[1641188604851,2.32466389,3820.1,3820.0,0.01110851]
[1641188606148,1.69032,3820.1,3820.0,0.01110851]
[1641188606353,1.58467582,3820.2,3820.0,0.01110851]
[1641188606549,1.57563929,3820.2,3820.0,0.01110851]
[1641188606750,1.57563929,3820.2,3820.1,0.00625265]
[1641188614059,1.52563929,3820.2,3820.1,0.00625265]
[1641188616604,1.52563929,3820.2,3819.8,1.80106928]
[1641188616819,1.52563929,3820.2,3819.8,0.0911539]
[1641188616820,0.3,3820.1,3819.8,0.0911539]
[1641188617109,11.62687,3820.0,3819.8,5.39e-05]
[1641188617606,1.0,3819.9,3819.8,5.39e-05]
[1641188617810,6.6141,3819.9,3819.8,5.39e-05]
[1641188618271,5.6141,3819.9,3819.8,5.39e-05]
[1641188619063,7.925286,3819.9,3819.8,5.39e-05]
[1641188619863,5.6141,3819.9,3819.8,5.39e-05]
[1641188620264,5.2331,3819.9,3819.8,5.39e-05]
[1641188621666,5.5331,3819.9,3819.8,5.39e-05]
[1641188626751,5.5331,3819.9,3819.8,0.01035118]
[1641188627717,5.5331,3819.9,3819.8,0.01029728]
[1641188628654,5.2331,3819.9,3819.8,0.01029728]
[1641188641849,5.5331,3819.9,3819.8,0.01029728]
[1641188643053,5.2331,3819.9,3819.8,0.01029728]
[1641188646520,5.5331,3819.9,3819.8,0.01029728]
[1641188651861,5.9141,3819.9,3819.8,0.01029728]
[1641188654014,5.9141,3819.9,3819.5,0.05406342]
[1641188654015,12.3621,3819.9,3819.5,0.05406342]
[1641188654219,1.30964,3819.7,3819.5,0.05406342]
[1641188654415,5.6141,3819.6,3819.5,0.05406342]
[1641188654614,6.6141,3819.6,3819.5,0.05406342]
[1641188654814,6.6141,3819.6,3819.5,0.05633711]
[1641188655016,7.79594417,3819.6,3819.5,0.05633711]
[1641188655213,7.79594417,3819.6,3819.5,0.00227369]
[1641188655766,0.65484,3819.4,3819.2,0.05406395]
[1641188655961,6.26894,3819.3,3819.2,0.05406395]
[1641188656161,5.88794,3819.3,3819.2,0.05406395]
[1641188656560,5.2331,3819.3,3819.2,0.05406395]
[1641188657160,5.2331,3819.3,3819.0,10.0]
[1641188657560,5.2331,3819.3,3819.1,0.00454739]
[1641188658161,5.88781,3819.3,3819.2,0.01029902]
[1641188658564,5.88781,3819.3,3819.2,0.01427798]
[1641188658864,6.18781,3819.3,3819.2,0.01427798]
[1641188659507,6.84253,3819.3,3819.2,0.01427798]
[1641188668012,6.84253,3819.3,3819.0,10.0]
[1641188668209,7.49737,3819.3,3819.0,10.0]
[1641188668414,1.30964,3819.2,3819.0,10.0]
[1641188668615,3.52841948,3819.2,3819.0,10.0]
[1641188668816,1.30964,3819.2,3819.0,10.0]
[1641188669015,1.01269105,3819.1,3819.0,10.0]
[1641188669214,3.23923455,3819.1,3819.0,10.0]
[1641188669414,1.31269105,3819.1,3819.0,10.00113685]
[1641188670857,1.31269105,3819.1,3819.0,10.00411413]
[1641188673459,1.69369105,3819.1,3819.0,10.00411413]
[1641188674711,3.95228247,3819.1,3819.0,10.00411413]
[1641188675713,3.95228247,3819.1,3819.0,4.76478413]
[1641188675911,3.95228247,3819.1,3818.0,6.21]
[1641188675912,0.65496,3818.6,3818.0,6.21]
[1641188676112,0.65497,3818.4,3818.0,6.21]
[1641188676309,1.03597,3818.4,3818.1,0.00511581]
[1641188676909,3.30057059,3818.4,3818.1,0.00511581]
[1641188677109,3.2849237,3818.4,3818.1,0.00511581]
[1641188677316,0.65497,3818.2,3818.1,0.00511581]
[1641188677610,1.30994,3818.2,3818.1,0.00511581]
[1641188678669,2.3620168,3818.2,3818.1,0.00511581]
[1641188681371,2.3620168,3818.2,3817.7,0.00738951]
[1641188681372,0.65497,3818.0,3817.7,0.00738951]
[1641188681771,0.65199191,3818.0,3817.7,0.00738951]
[1641188683228,1.30696191,3818.0,3817.7,0.00738951]
[1641188683628,0.65497,3817.9,3817.7,0.00738951]
[1641188684028,0.65497,3817.9,3817.7,0.30738951]
[1641188684230,0.65497,3817.9,3817.7,0.00738951]
[1641188684430,2.91702718,3817.9,3817.8,0.00682108]
[1641188684630,3.30676469,3817.9,3817.7,0.00738951]
[1641188685229,1.03597,3817.9,3817.7,0.00738951]
[1641188686065,3.2912985,3817.9,3817.7,0.00738951]
[1641188686461,1.03597,3817.9,3817.7,0.00738951]
[1641188686861,1.03597,3817.9,3817.6,0.40009163]
[1641188686862,1.965252,3817.8,3817.6,0.40009163]
[1641188687061,0.95509,3817.7,3817.6,0.40009163]
[1641188687666,0.95509,3817.7,3817.2,6.21]
[1641188687866,1.31013,3817.6,3817.2,6.21]
[1641188688063,0.3,3817.5,3817.3,0.00227369]
[1641188688264,1.61012,3817.5,3817.3,0.00227369]
[1641188690819,0.65507,3817.3,3817.1,0.00341054]
[1641188691019,1.96521,3817.3,3817.1,0.00341054]
[1641188691220,2.26521,3817.3,3817.1,0.00341054]
[1641188691419,2.26521,3817.3,3817.0,0.00397896]
[1641188691621,1.61014,3817.3,3817.0,0.00397896]
[1641188692524,0.65508,3817.2,3817.0,0.00397896]
[1641188693757,1.31014,3817.2,3816.9,0.00454738]
[1641188693957,1.31012,3817.2,3816.9,0.00454738]
[1641188694159,0.65506,3817.1,3816.9,1.25510047]
[1641188694462,0.3,3817.0,3816.9,1.20510047]
[1641188696060,0.3,3817.0,3816.6,2.93160934]
[1641188696260,0.65503,3816.9,3816.6,1.26477399]
[1641188696459,0.65503,3816.9,3816.7,0.00113685]
[1641188698327,0.3,3817.0,3816.7,1.00113685]
[1641188698529,0.3,3817.0,3816.7,0.00113685]
[1641188698727,0.65498,3817.2,3816.7,1.00113685]
[1641188699128,0.00113684,3817.1,3816.7,0.00113685]
[1641188699328,0.655,3817.0,3816.8,0.6549576]
[1641188699629,0.655,3817.0,3816.8,2.62179295]
[1641188699831,0.00113684,3817.1,3816.8,2.62179295]
[1641188700029,0.00113684,3817.1,3816.9,1.0]
[1641188700230,0.00113684,3817.1,3816.9,1.01229045]
[1641188700439,0.00113684,3817.1,3817.0,11.04783535]
[1641188700632,0.00113684,3817.1,3817.0,12.34783535]
[1641188700888,0.00113684,3817.1,3817.0,10.7399]
[1641188701086,2.4475349,3818.7,3817.0,1.7399]
[1641188701287,1.3096,3818.5,3817.8,1.24556167]
[1641188701488,0.05395792,3817.9,3817.8,1.24556167]
[1641188701787,0.05395792,3817.9,3817.8,2.20038927]
[1641188702087,0.05850531,3817.9,3817.8,2.20038927]
[1641188702289,0.05850531,3817.9,3817.8,0.9548276]
[1641188703389,0.00454739,3817.9,3817.8,0.6548276]
[1641188703791,0.00454739,3817.9,3817.5,1.3096269]
[1641188703992,0.65486,3817.8,3817.7,0.654854]
[1641188704192,0.65883897,3817.8,3817.7,0.654854]
[1641188704607,0.65883897,3817.8,3817.7,0.954854]
[1641188705009,0.65883897,3817.8,3817.7,2.20962552]
[1641188705409,0.65883897,3817.8,3817.7,3.20962552]
[1641188706011,0.00397897,3817.8,3817.7,3.20962552]
[1641188707010,0.00397897,3817.8,3817.7,1.90962552]
[1641188707211,0.00397897,3817.8,3817.7,2.20962552]
[1641188707412,0.00397897,3817.8,3817.7,1.954854]
[1641188708116,0.00397897,3817.8,3817.7,0.954854]
[1641188709167,0.00397897,3817.8,3817.7,0.96757281]
[1641188709369,0.00397897,3817.8,3817.7,0.97787572]
[1641188709570,0.00397897,3817.8,3817.7,1.02641696]
[1641188709971,0.00397897,3817.8,3817.7,3.62641696]
[1641188710169,0.00397897,3817.8,3817.7,4.62641696]
[1641188710369,0.00397897,3817.8,3817.7,14.62641696]
[1641188712112,0.00397897,3817.8,3817.7,18.16793228]
[1641188714519,0.00397897,3817.8,3817.7,18.15521347]
[1641188716472,0.00397897,3817.8,3817.7,18.16738074]
[1641188717973,0.00397897,3817.8,3817.7,19.40998499]
[1641188718378,0.00397897,3817.8,3817.7,18.15521347]
[1641188719535,0.00397897,3817.8,3817.7,19.82577191]
[1641188720121,0.00397897,3817.8,3817.7,14.61369815]
[1641188720727,0.00397897,3817.8,3817.7,18.15521347]
[1641188721427,0.00397897,3817.8,3817.7,18.53621347]
[1641188722632,7.897e-05,3817.8,3817.7,20.20677191]
[1641188722834,7.897e-05,3817.8,3817.7,24.97728476]
[1641188723029,7.897e-05,3817.8,3817.7,40.45320219]
[1641188723265,5.2331,3819.3,3817.8,6.7]
[1641188723471,5.2331,3819.3,3818.6,0.65461]
[1641188723676,0.00795793,3819.2,3818.8,0.6546019]
[1641188723876,0.00795793,3819.2,3818.9,0.381]
[1641188724072,5.2331,3819.3,3818.9,0.681]
[1641188724073,0.0073895,3819.1,3818.9,0.681]
[1641188724474,0.00682108,3819.0,3818.9,0.681]
[1641188724876,0.00682108,3819.0,3818.9,2.94711911]
[1641188725077,0.00682108,3819.0,3818.9,1.681]
[1641188726878,0.00682108,3819.0,3818.9,3.93123483]
[1641188727714,0.00682108,3819.0,3818.9,1.681]
[1641188728014,0.00682108,3819.0,3818.9,3.92138052]
[1641188728218,0.00682108,3819.0,3818.9,3.92377887]
[1641188728415,0.00682108,3819.0,3818.9,1.681]
[1641188728616,0.00682108,3819.0,3818.9,3.91573815]
[1641188728818,0.00682108,3819.0,3818.9,1.681]
[1641188729016,0.00682108,3819.0,3818.9,4.281]
[1641188729218,0.00682108,3819.0,3818.9,4.32954124]
[1641188730219,0.00682108,3819.0,3818.9,14.32954124]
[1641188732064,0.00682108,3819.0,3818.9,17.97179419]
[1641188735411,0.00682108,3819.0,3818.9,17.98209385]
[1641188749818,0.00182108,3819.0,3818.9,17.98209385]
[1641188750427,5.2331,3819.3,3818.9,17.98209385]
[1641188750428,1.30733108,3819.3,3819.0,1.96375]
[1641188750623,1.30733108,3819.3,3819.1,0.3]
[1641188750822,0.00113685,3819.2,3819.1,0.3]
[1641188751218,0.00113685,3819.2,3819.1,0.32203282]
[1641188752226,0.00113685,3819.2,3819.1,0.97664282]
[1641188752422,0.00113685,3819.2,3819.1,1.97664282]
[1641188754277,1.28229332,3819.3,3819.1,1.97664282]
[1641188755977,1.28229332,3819.3,3819.2,0.02650842]
[1641188756377,1.28229332,3819.3,3819.2,0.04854124]
[1641188757022,1.28229332,3819.3,3819.2,3.54854124]
[1641188757223,1.28229332,3819.3,3819.2,4.54854124]
[1641188757627,1.28229332,3819.3,3819.2,4.84854124]
[1641188758628,1.28229332,3819.3,3819.2,1.34854124]
[1641188759432,1.28229332,3819.3,3819.2,0.34854124]
[1641188759633,1.28229332,3819.3,3819.2,1.34854124]
[1641188760433,1.28229332,3819.3,3819.2,0.34854124]
[1641188761297,1.28229332,3819.3,3819.2,0.35884008]
[1641188771671,1.28229332,3819.3,3819.2,3.85884008]
[1641188772121,1.28229332,3819.3,3819.2,4.85884008]
[1641188772421,1.28229332,3819.3,3819.2,14.85884008]
[1641188773427,1.28229332,3819.3,3819.2,18.50109303]
[1641188773626,0.93229332,3819.3,3819.2,18.50109303]
[1641188774229,0.93229332,3819.3,3819.2,14.85884008]
[1641188776265,0.93229332,3819.3,3819.2,11.35884008]
[1641188780729,0.93229332,3819.3,3819.2,14.85884008]
[1641188782331,0.93229332,3819.3,3819.2,11.35884008]
[1641188794075,0.93229332,3819.3,3819.2,10.35884008]
[1641188795743,0.93229332,3819.3,3819.2,10.05884008]
[1641188802839,1.31329332,3819.3,3819.2,10.05884008]
[1641188806603,1.61329332,3819.3,3819.2,10.05884008]
[1641188807008,1.61329332,3819.3,3819.2,4.81946008]
[1641188808302,1.61329332,3819.3,3818.9,12.6]
[1641188808303,5.05465784,3819.3,3818.9,12.6]
[1641188808500,0.65495,3819.1,3818.9,12.6]
[1641188808700,0.381,3819.0,3818.9,12.6]
[1641188809101,0.381,3819.0,3818.9,12.60170527]
[1641188809300,0.681,3819.0,3818.9,12.60170527]
[1641188809726,0.681,3819.0,3818.9,7.36179527]
[1641188810328,0.681,3819.0,3818.9,2.12181527]
[1641188810529,0.681,3819.0,3818.9,1.90299886]
[1641188810729,4.48758014,3819.0,3818.9,1.90299886]
[1641188810929,3.48758014,3819.0,3818.6,0.05395458]
[1641188811134,0.65501,3818.8,3818.6,0.05395458]
[1641188811334,2.51344664,3818.7,3818.6,0.05395458]
[1641188811636,4.90187058,3818.7,3818.6,0.05565986]
[1641188811834,5.28287058,3818.7,3817.8,0.65499]
[1641188812040,1.3,3818.6,3817.6,0.65503]
[1641188812235,1.9651425,3818.2,3817.9,0.00397896]
[1641188812635,0.3,3818.1,3817.4,0.00682108]
[1641188812935,1.10035305,3817.7,3817.4,0.00682108]
[1641188813371,0.65504,3817.6,3817.4,0.00682108]
[1641188813573,0.65504,3817.6,3817.5,0.65506]
[1641188813973,0.65504,3817.6,3817.5,0.66131265]
[1641188814374,0.65498,3817.8,3817.5,0.66131265]
[1641188814774,0.65498,3817.8,3817.6,0.00568423]
[1641188815375,1.16460438,3817.7,3817.6,0.00568423]
[1641188815575,3.5102051,3817.7,3817.6,0.00568423]
[1641188815775,1.16460438,3817.7,3817.6,0.00568423]
[1641188815975,3.50347815,3817.7,3817.6,0.00568423]
[1641188816178,1.16460438,3817.7,3817.6,0.00568423]
[1641188817024,1.16460438,3817.7,3817.6,10.00568423]
[1641188818022,1.16460438,3817.7,3817.6,10.30568423]
[1641188818423,1.16460438,3817.7,3817.6,10.00568423]
[1641188820983,1.16460438,3817.7,3817.6,12.60568423]
[1641188821982,1.46460438,3817.7,3817.6,12.60568423]
[1641188822187,1.84560438,3817.7,3817.6,12.60568423]
[1641188822388,2.84560438,3817.7,3817.6,12.60568423]
[1641188823786,2.84560438,3817.7,3817.6,12.61598735]
[1641188824088,2.84560438,3817.7,3817.6,6.90279054]
[1641188824089,3.7778977,3817.7,3817.6,6.90279054]
[1641188824534,8.5358977,3817.7,3817.6,0.47142681]
[1641188824734,3.3,3817.6,3817.2,6.26395687]
[1641188824940,2.6593181,3817.5,3817.2,0.05395687]
[1641188825135,0.65529,3817.4,3817.3,0.00170527]
[1641188825339,1.96858332,3817.4,3817.3,0.00170527]
[1641188825540,1.96858332,3817.4,3816.5,6.21]
[1641188825940,1.96858332,3817.4,3816.6,0.00397896]
[1641188825941,3.26451769,3817.1,3816.6,0.00397896]
[1641188826141,3.00633897,3817.0,3816.6,0.00397896]
[1641188826543,0.3,3816.9,3816.6,0.00397896]
[1641188826747,0.381,3816.8,3816.6,0.00397896]
[1641188827551,1.7316788,3816.8,3816.6,0.00397896]
[1641188827754,1.7316788,3816.8,3815.9,0.00795793]
[1641188827946,0.65538,3816.4,3816.0,6.85]
[1641188828147,0.381,3816.3,3816.0,6.85]
[1641188828404,0.381,3816.3,3816.1,0.00682108]
[1641188828802,0.381,3816.3,3816.2,0.00625266]
[1641188829000,0.381,3816.3,3816.1,0.00682108]
[1641188829405,1.03637,3816.3,3816.2,0.01030704]
[1641188829599,4.48387067,3816.3,3816.2,0.01030704]
[1641188829799,4.44366709,3816.3,3816.2,0.0165597]
[1641188831400,5.44366709,3816.3,3816.2,0.0165597]
[1641188831601,5.44366709,3816.3,3816.2,2.6165597]
[1641188832022,6.37596041,3816.3,3816.2,2.6165597]
[1641188832225,6.37596041,3816.3,3814.9,6.21]
[1641188832426,1.30203947,3815.4,3814.9,6.51]
[1641188832629,1.30203947,3815.4,3815.1,0.00625266]
[1641188833030,1.30203947,3815.4,3815.0,0.66230108]
[1641188833332,2.81079822,3815.3,3815.0,0.00682108]
[1641188833533,1.03649,3815.3,3815.0,0.00682108]
[1641188834334,3.4446105,3815.3,3815.0,0.00682108]
[1641188834533,3.46187564,3815.3,3815.0,0.00682108]
[1641188834733,3.50278002,3815.3,3815.0,0.00682108]
[1641188835035,1.03649,3815.3,3815.0,0.00682108]
[1641188835876,2.30265316,3815.2,3815.0,0.00682108]
[1641188836075,2.44139288,3815.2,3815.0,0.00682108]
[1641188836576,1.03649,3815.3,3815.0,0.00682108]
[1641188836978,3.45392232,3815.3,3815.0,0.00682108]
[1641188837378,3.51758031,3815.3,3815.0,0.00682108]
[1641188837679,1.03649,3815.3,3815.0,0.00682108]
[1641188838082,3.50185341,3815.3,3815.0,0.00682108]
[1641188838277,1.03649,3815.3,3815.0,0.00682108]
[1641188838885,3.46989404,3815.3,3815.0,0.00682108]
[1641188840135,4.12543404,3815.3,3815.0,0.00682108]
[1641188840741,1.69203,3815.3,3815.0,0.00682108]
[1641188840936,1.69203,3815.3,3814.6,0.00909477]
[1641188841137,0.65551,3815.0,3814.6,0.00909477]
[1641188841338,1.03654,3815.3,3815.0,1.94449]
[1641188841339,3.45655882,3815.3,3815.0,1.94449]
[1641188841537,1.03654,3815.3,3815.0,1.94449]
[1641188841736,3.44247386,3815.3,3815.0,1.94449]
[1641188842136,3.47439575,3815.3,3815.0,1.94449]
[1641188842536,0.65553,3815.2,3815.0,1.94449]
[1641188843137,0.381,3815.1,3815.0,1.94449]
[1641188843578,0.381,3815.1,3815.0,1.95131108]
[1641188845786,2.82051425,3815.1,3815.0,1.95131108]
[1641188846379,0.41216443,3815.1,3815.0,1.95131108]
[1641188846582,0.381,3815.1,3815.0,1.95131108]
[1641188846780,2.86204681,3815.1,3815.0,1.95131108]
[1641188847032,2.37566499,3815.1,3815.0,1.95131108]
[1641188847431,1.37566499,3815.1,3815.0,1.95131108]
[1641188847632,2.37566499,3815.1,3815.0,1.95131108]
[1641188847832,1.37566499,3815.1,3815.0,1.95131108]
[1641188848034,2.37566499,3815.1,3815.0,1.95131108]
[1641188848233,1.37566499,3815.1,3815.0,1.95131108]
[1641188848437,2.37566499,3815.1,3815.0,1.95131108]
[1641188848841,0.381,3815.1,3815.0,1.95131108]